bitfinex-derivatives/quotes_SOLF0:USTF0_20241218
["timestamp","ask_amount","ask_price","bid_price","bid_amount"]
[1734518000274,9.53891622,216.35,216.31,2.3118]
[1734518001075,2.3115,216.34,216.31,2.3118]
[1734518001880,7.22751622,216.35,216.28,7.22751622]
[1734518002180,7.22751622,216.33,216.29,2.3119]
[1734518002883,7.22751622,216.31,216.27,2.3121]
[1734518003084,7.22751622,216.31,216.24,8.80651622]
[1734518003283,7.22751622,216.33,216.26,7.22751622]
[1734518003490,2.3119,216.31,216.27,2.3122]
[1734518003678,7.22751622,216.33,216.26,7.22751622]
[1734518004581,2.3119,216.3,216.26,7.22751622]
[1734518005485,2.3119,216.3,216.27,2.3122]
[1734518006682,2.3118,216.31,216.27,2.3122]
[1734518009488,2.3118,216.31,216.28,2.3121]
[1734518012893,7.22751622,216.33,216.24,1.579]
[1734518013200,2.3121,216.28,216.24,2.3125]
[1734518013495,95.25168409,216.4,216.21,10.34471622]
[1734518013496,2.3115,216.34,216.3,2.3118]
[1734518014385,2.3115,216.34,216.31,2.3118]
[1734518014996,2.3113,216.36,216.29,7.22751622]
[1734518015192,2.3113,216.36,216.31,7.22751622]
[1734518015793,2.3114,216.35,216.33,2.3115]
[1734518015994,2.3114,216.35,216.29,7.22751622]
[1734518016896,7.22751622,216.35,216.27,7.22751622]
[1734518017194,7.22751622,216.35,216.29,7.22751622]
[1734518017390,9.53901622,216.35,216.32,2.3116]
[1734518017591,7.22751622,216.35,216.29,7.22751622]
[1734518020491,9.53891622,216.35,216.29,7.22751622]
[1734518021295,9.53891622,216.35,216.32,2.3117]
[1734518022296,2.3115,216.34,216.32,2.3117]
[1734518023996,7.22751622,216.35,216.26,1.6032]
[1734518024301,7.22751622,216.35,216.27,7.22751622]
[1734518024502,7.22751622,216.33,216.28,2.3121]
[1734518024894,7.22751622,216.31,216.28,2.3121]
[1734518025398,2.3119,216.3,216.28,2.3121]
[1734518027506,2.3119,216.3,216.27,2.3122]
[1734518028300,7.22751622,216.32,216.21,3.1172]
[1734518028505,2.3122,216.27,216.24,2.3124]
[1734518029502,9.53971622,216.28,216.23,2.3126]
[1734518029701,9.53971622,216.28,216.21,10.34471622]
[1734518030303,9.53971622,216.28,216.24,2.3125]
[1734518035404,9.53971622,216.28,216.25,2.3124]
[1734518036899,7.22751622,216.28,216.23,7.22751622]
[1734518037097,2.312,216.29,216.26,2.3123]
[1734518038904,90.62988409,216.4,216.25,7.22751622]
[1734518039105,7.22751622,216.31,216.25,7.22751622]
[1734518039406,7.22751622,216.31,216.28,2.3121]
[1734518039407,9.53931622,216.31,216.28,2.3121]
[1734518041506,2.3121,216.29,216.21,8.63754884]
[1734518041707,9.53961622,216.29,216.23,7.22751622]
[1734518042407,9.53961622,216.29,216.25,2.3123]
[1734518042608,9.53961622,216.29,216.23,7.22751622]
[1734518043408,2.3121,216.28,216.23,7.22751622]
[1734518044109,2.3121,216.28,216.25,2.3123]
[1734518048234,9.53951622,216.29,216.26,2.3123]
[1734518049513,2.312,216.29,216.26,2.3123]
[1734518056627,2.3124,216.25,216.22,2.3127]
[1734518056927,7.22751622,216.25,216.17,7.22751622]
[1734518057129,7.22751622,216.25,216.19,7.22751622]
[1734518058529,9.54001622,216.25,216.22,2.3127]
[1734518058826,5.56994289,216.31,216.21,7.22751622]
[1734518059131,2.3121,216.29,216.26,2.3123]
[1734518061027,2.3121,216.29,216.27,4.73898481]
[1734518061326,2.3121,216.29,216.28,4.73898481]
[1734518069332,9.53961622,216.29,216.28,4.73898481]
[1734518070130,1.6019,216.36,216.28,4.73898481]
[1734518070329,7.22751622,216.36,216.29,4.73898481]
[1734518070531,13.89,216.43,216.3,7.22751622]
[1734518070735,13.89,216.43,216.32,7.22751622]
[1734518070934,1.5545,216.44,216.32,7.22751622]
[1734518071134,7.22751622,216.4,216.33,4.73898481]
[1734518071337,1.5545,216.44,216.32,7.22751622]
[1734518071933,7.22751622,216.4,216.33,4.7437651]
[1734518072439,2.311,216.39,216.35,2.3114]
[1734518072640,2.311,216.39,216.36,4.7437651]
[1734518072832,7.22751622,216.38,216.36,4.7437651]
[1734518073134,2.3112,216.37,216.36,4.7437651]
[1734518073340,2.3112,216.37,216.31,7.22751622]
[1734518073544,2.3112,216.37,216.36,4.7417221]
[1734518073937,2.3112,216.37,216.32,4.7417221]
[1734518074238,2.3112,216.37,216.33,4.7417221]
[1734518074438,2.3112,216.37,216.34,4.7417221]
[1734518074830,2.3112,216.37,216.35,4.7417221]
[1734518075139,9.53851622,216.38,216.34,2.3115]
[1734518075734,9.53851622,216.38,216.35,4.74064755]
[1734518075939,9.53851622,216.38,216.34,2.3115]
[1734518077145,7.22751622,216.36,216.29,1.4976]
[1734518077441,7.22751622,216.33,216.3,4.74021539]
[1734518077638,7.22751622,216.33,216.31,4.74021539]
[1734518077945,7.22751622,216.33,216.32,4.74021539]
[1734518080144,9.53891622,216.35,216.32,4.74021539]
[1734518080442,2.3114,216.35,216.32,4.74021539]
[1734518080647,9.53891622,216.35,216.33,4.74021539]
[1734518080847,9.53891622,216.35,216.31,2.3118]
[1734518081047,9.53891622,216.35,216.32,4.73912351]
[1734518081345,9.53891622,216.35,216.33,4.73912351]
[1734518081542,9.53891622,216.35,216.31,2.3118]
[1734518083045,9.53891622,216.35,216.32,4.73894525]
[1734518083348,9.53891622,216.35,216.33,4.73894525]
[1734518083549,9.53891622,216.35,216.34,4.73894525]
[1734518088653,9.53891622,216.35,216.31,2.3117]
[1734518089255,9.53891622,216.35,216.32,4.7386612]
[1734518089457,9.53891622,216.35,216.33,4.7386612]
[1734518089752,9.53891622,216.35,216.34,4.7386612]
[1734518090551,9.53891622,216.35,216.31,2.3117]
[1734518090952,9.53891622,216.35,216.32,4.73861898]
[1734518091149,9.53891622,216.35,216.33,4.73861898]
[1734518091354,9.53891622,216.35,216.34,4.73861898]
[1734518092452,7.22751622,216.35,216.29,2.312]
[1734518092658,5.64946199,216.41,216.3,4.73872953]
[1734518092953,7.22751622,216.35,216.31,4.73872953]
[1734518093155,7.22751622,216.35,216.32,4.73872953]
[1734518093350,7.22751622,216.35,216.33,4.73872953]
[1734518093548,7.22751622,216.35,216.34,4.73872953]
[1734518094854,7.22751622,216.35,216.34,4.73817547]
[1734518101560,2.3113,216.36,216.34,4.73817547]
[1734518101760,9.53881622,216.36,216.35,4.73817547]
[1734518102465,7.22751622,216.36,216.35,4.73817547]
[1734518103870,7.22751622,216.36,216.34,2.3115]
[1734518104067,9.53881622,216.36,216.32,2.3116]
[1734518104269,7.22751622,216.34,216.33,4.73683095]
[1734518104577,9.53901622,216.34,216.33,4.73683095]
[1734518110773,7.22751622,216.34,216.22,1.5845]
[1734518110969,9.53971622,216.27,216.22,1.5845]
[1734518111176,7.22751622,216.27,216.22,1.5845]
[1734518111378,7.22751622,216.27,216.22,7.22036744]
[1734518111576,7.22751622,216.29,216.24,7.22751622]
[1734518111873,7.22751622,216.33,216.26,7.22751622]
[1734518112281,9.53921622,216.33,216.26,7.22751622]
[1734518112476,9.53921622,216.33,216.29,2.312]
[1734518112871,2.3117,216.32,216.29,2.312]
[1734518114872,5.47274356,216.4,216.3,7.22751622]
[1734518115075,7.22751622,216.37,216.31,1.595]
[1734518115275,7.22751622,216.37,216.32,7.22751622]
[1734518115481,9.53871622,216.37,216.34,2.3114]
[1734518115673,7.22751622,216.37,216.31,3.1364]
[1734518115872,5.47274356,216.4,216.31,10.36391622]
[1734518116185,7.22751622,216.38,216.33,2.3115]
[1734518116779,2.3112,216.37,216.33,2.3115]
[1734518117273,9.53871622,216.37,216.33,2.3115]
[1734518118977,7.22751622,216.37,216.33,2.3115]
[1734518119178,2.3113,216.36,216.33,2.3115]
[1734518120273,7.22751622,216.35,216.31,1.595]
[1734518120471,7.22751622,216.33,216.31,1.595]
[1734518121577,2.3117,216.32,216.31,1.595]
[1734518121777,2.3117,216.32,216.27,1.4807]
[1734518121778,7.22751622,216.33,216.27,1.4807]
[1734518121975,7.22751622,216.31,216.27,1.4807]
[1734518122185,7.22751622,216.29,216.24,1.4658]
[1734518122374,7.22751622,216.26,216.24,1.4658]
[1734518123080,9.53991622,216.26,216.25,4.81617753]
[1734518123475,14.4743,216.39,216.25,4.81617753]
[1734518123672,2.3122,216.27,216.25,4.81617753]
[1734518123879,0.5843,216.39,216.26,4.81617753]
[1734518124184,9.53951622,216.3,216.27,4.81617753]
[1734518124378,59.87986171,216.35,216.27,4.81617753]
[1734518124582,7.22751622,216.32,216.28,4.81617753]
[1734518124780,7.22751622,216.32,216.24,8.69331622]
[1734518124781,2.3119,216.31,216.29,4.81617753]
[1734518124980,2.3119,216.31,216.3,4.81617753]
[1734518126086,7.22751622,216.32,216.27,2.3122]
[1734518126285,2.3119,216.3,216.28,4.8121543]
[1734518126582,59.87986171,216.35,216.29,4.8121543]
[1734518126783,7.22751622,216.31,216.24,1.4658]
[1734518127085,7.22751622,216.29,216.25,4.81195574]
[1734518127283,7.22751622,216.27,216.26,4.81195574]
[1734518127881,9.53971622,216.27,216.26,4.81195574]
[1734518132592,2.3128,216.22,216.1,6.43397018]
[1734518132791,7.22751622,216.2,216.14,3.1847]
[1734518133493,7.22751622,216.2,216.17,2.3133]
[1734518134594,9.54051622,216.2,216.16,2.3134]
[1734518136193,7.22751622,216.2,216.16,2.3134]
[1734518136686,9.54051622,216.2,216.15,2.3135]
[1734518136889,7.22751622,216.18,216.15,2.3135]
[1734518141296,7.22751622,216.18,216.16,2.3134]
[1734518141490,7.22751622,216.2,216.14,3.1847]
[1734518142185,7.22751622,216.18,216.14,3.1847]
[1734518142494,7.22751622,216.18,216.14,1.5846]
[1734518142887,2.3133,216.17,216.03,1.4783]
[1734518143086,7.22751622,216.16,216.08,5.60067558]
[1734518143291,7.22751622,216.16,216.09,7.22751622]
[1734518143795,9.54091622,216.16,216.11,2.3138]
[1734518144394,2.3135,216.15,216.11,2.3138]
[1734518144696,7.22751622,216.16,216.12,4.72849553]
[1734518144898,1.5773,216.24,216.08,7.22751622]
[1734518145098,7.22751622,216.16,216.09,4.72858648]
[1734518145398,7.22751622,216.16,216.1,4.72858648]
[1734518145590,7.22751622,216.16,216.11,7.04238648]
[1734518145591,9.54101622,216.16,216.11,7.04238648]
[1734518145990,9.54101622,216.16,216.12,4.72858648]
[1734518146191,7.22751622,216.14,216.12,4.72858648]
[1734518146392,7.22751622,216.14,216.12,2.3138]
[1734518147597,2.3132,216.19,216.08,7.22751622]
[1734518147793,5.49709585,216.25,216.14,7.22751622]
[1734518147998,7.22751622,216.21,216.14,7.22751622]
[1734518148195,7.22751622,216.21,216.15,6.31145164]
[1734518148393,7.22751622,216.21,216.15,1.5865]
[1734518148694,7.22751622,216.21,216.19,2.313]
[1734518149202,7.22751622,216.21,216.15,1.5865]
[1734518149701,7.22751622,216.21,216.16,2.3133]
[1734518149897,7.22751622,216.21,216.16,4.72491405]
[1734518150198,7.22751622,216.21,216.15,1.5865]
[1734518150398,7.22751622,216.21,216.19,2.313]
[1734518152005,7.22751622,216.21,216.2,2.313]
[1734518154305,7.22751622,216.21,216.15,2.3135]
[1734518154306,2.3131,216.19,216.15,2.3135]
[1734518154507,5.49709585,216.25,216.11,7.22751622]
[1734518154702,7.22751622,216.19,216.12,4.72651672]
[1734518154903,7.22751622,216.19,216.17,2.3132]
[1734518155103,5.49709585,216.25,216.13,7.22751622]
[1734518155301,7.22751622,216.2,216.13,7.22751622]
[1734518155502,7.22751622,216.2,216.14,4.72676048]
[1734518155904,7.22751622,216.2,216.19,2.3131]
[1734518157804,2.0748,216.3,216.15,7.22751622]
[1734518158003,2.0748,216.3,216.07,1.5196]
[1734518158004,1.4884,216.3,216.19,7.22751622]
[1734518158211,59.89306903,216.31,216.19,7.22751622]
[1734518158409,7.22751622,216.28,216.25,2.3124]
[1734518159510,7.22751622,216.26,216.25,2.3124]
[1734518159710,7.22751622,216.26,216.24,2.3125]
[1734518159907,7.22751622,216.24,216.2,1.5549]
[1734518160210,7.22751622,216.24,216.21,4.72834965]
[1734518160411,7.22751622,216.24,216.2,1.5549]
[1734518160807,7.22751622,216.24,216.23,2.3126]
[1734518161008,7.22751622,216.26,216.2,1.5549]
[1734518161410,7.22751622,216.26,216.24,2.3125]
[1734518162110,7.22751622,216.26,216.2,1.5549]
[1734518162308,7.22751622,216.26,216.21,4.73211555]
[1734518162610,7.22751622,216.26,216.22,4.73211555]
[1734518162813,7.22751622,216.26,216.23,4.73211555]
[1734518163005,1.602,216.36,216.21,7.22751622]
[1734518163204,7.22751622,216.29,216.28,2.3121]
[1734518163405,7.22751622,216.33,216.25,7.22751622]
[1734518163606,7.22751622,216.33,216.31,2.3118]
[1734518163806,7.22751622,216.33,216.26,1.5862]
[1734518164007,7.22751622,216.28,216.2,1.5549]
[1734518164206,7.22751622,216.26,216.25,2.3123]
[1734518164515,7.22751622,216.26,216.25,7.04772513]
[1734518166413,7.22751622,216.26,216.25,2.3123]
[1734518167310,7.22751622,216.26,216.25,7.05263412]
[1734518167815,7.22751622,216.26,216.25,4.74033412]
[1734518168215,7.22751622,216.26,216.2,1.5549]
[1734518168415,19.37310585,216.37,216.21,7.05323364]
[1734518168416,7.22751622,216.24,216.21,7.05323364]
[1734518168617,7.22751622,216.24,216.22,4.74043364]
[1734518168820,7.22751622,216.24,216.23,4.74043364]
[1734518169112,9.54011622,216.24,216.19,2.313]
[1734518169313,7.22751622,216.22,216.2,4.74096318]
[1734518169712,7.22751622,216.22,216.21,4.74096318]
[1734518172620,2.3126,216.24,216.21,4.74096318]
[1734518172822,2.3122,216.28,216.22,7.05366318]
[1734518173115,7.22751622,216.25,216.23,4.74096318]
[1734518173321,7.22751622,216.25,216.24,4.74096318]
[1734518173722,7.22751622,216.29,216.26,2.3123]
[1734518174316,7.22751622,216.29,216.27,4.74333525]
[1734518174516,7.22751622,216.29,216.28,4.74333525]
[1734518175722,7.22751622,216.29,216.26,2.3123]
[1734518175921,7.22751622,216.29,216.27,4.74191513]
[1734518176220,7.22751622,216.29,216.28,4.74191513]
[1734518176617,7.22751622,216.29,216.26,2.3123]
[1734518177124,7.22751622,216.29,216.27,4.74133383]
[1734518177319,7.22751622,216.29,216.26,2.3123]
[1734518177724,7.22751622,216.29,216.27,4.74091424]
[1734518177920,7.22751622,216.29,216.26,2.3123]
[1734518178323,7.22751622,216.29,216.27,4.74032296]
[1734518178527,7.22751622,216.29,216.26,2.3123]
[1734518178821,1.5186,216.34,216.19,1.5694]
[1734518178822,7.22751622,216.27,216.19,1.5694]
[1734518179124,7.22751622,216.24,216.2,7.0537373]
[1734518179327,7.22751622,216.24,216.21,4.7408373]
[1734518179515,7.22751622,216.24,216.22,4.7408373]
[1734518179720,7.22751622,216.24,216.23,4.7408373]
[1734518181629,9.54001622,216.24,216.23,4.7408373]
[1734518183226,5.58463984,216.32,216.23,4.7408373]
[1734518183426,7.22751622,216.29,216.23,4.7408373]
[1734518183728,7.22751622,216.29,216.24,4.7408373]
[1734518184125,7.22751622,216.29,216.25,4.7408373]
[1734518184324,7.22751622,216.29,216.26,4.7408373]
[1734518184527,7.22751622,216.29,216.22,7.22751622]
[1734518184528,9.53951622,216.29,216.22,7.22751622]
[1734518184723,9.53951622,216.29,216.23,4.74100799]
[1734518185026,9.53951622,216.29,216.24,4.74100799]
[1734518185227,56.39360602,216.35,216.25,4.74100799]
[1734518185521,56.39360602,216.35,216.26,4.74100799]
[1734518185522,7.22751622,216.31,216.26,4.74100799]
[1734518185723,7.22751622,216.31,216.28,2.3121]
[1734518187527,5.639981,216.33,216.21,7.22751622]
[1734518187528,7.22751622,216.29,216.21,7.22751622]
[1734518187728,7.22751622,216.29,216.22,4.74028129]
[1734518188028,5.639981,216.33,216.23,11.96779751]
[1734518188229,7.22751622,216.3,216.24,4.74028129]
[1734518188527,9.53941622,216.3,216.27,2.3122]
[1734518188925,2.3119,216.3,216.27,2.3122]
[1734518189124,9.53941622,216.3,216.27,2.3122]
[1734518189831,2.3118,216.32,216.28,2.312]
[1734518190122,7.22751622,216.31,216.28,2.312]
[1734518190327,7.22751622,216.31,216.23,7.22751622]
[1734518190722,7.22751622,216.31,216.24,4.7422605]
[1734518190920,7.22751622,216.31,216.28,2.3121]
[1734518193123,7.22751622,216.31,216.23,7.22751622]
[1734518193520,1.523,216.37,216.24,6.25145605]
[1734518193725,7.22751622,216.34,216.32,2.3117]
[1734518193920,2.3114,216.35,216.32,2.3117]
[1734518194126,9.53891622,216.35,216.32,2.3117]
[1734518195330,7.22751622,216.35,216.32,2.3117]
[1734518195631,56.3802796,216.42,216.34,2.3115]
[1734518195829,56.3802796,216.42,216.31,7.22751622]
[1734518196128,7.22751622,216.4,216.32,4.743857]
[1734518196326,7.22751622,216.4,216.33,4.743857]
[1734518196524,7.22751622,216.4,216.33,11.97137322]
[1734518196830,7.22751622,216.4,216.37,2.3111]
[1734518198230,7.22751622,216.38,216.35,2.3114]
[1734518198729,7.22751622,216.38,216.36,4.7372864]
[1734518199028,7.22751622,216.38,216.35,2.3114]
[1734518199434,7.22751622,216.38,216.36,4.73581398]
[1734518199733,7.22751622,216.38,216.35,2.3114]
[1734518200430,7.22751622,216.38,216.36,4.73617432]
[1734518200730,7.22751622,216.38,216.35,2.3114]
[1734518200935,7.22751622,216.36,216.35,2.3114]
[1734518201127,7.22751622,216.36,216.35,7.04651397]
[1734518201433,7.22751622,216.36,216.35,2.3114]
[1734518201827,7.22751622,216.38,216.36,2.3112]
[1734518202938,56.3802796,216.42,216.34,7.22751622]
[1734518203235,7.22751622,216.41,216.35,4.7344075]
[1734518203537,7.22751622,216.41,216.36,4.7344075]
[1734518203832,7.22751622,216.41,216.37,4.7344075]
[1734518204038,6.93940428,216.5,216.36,7.22751622]
[1734518204335,5.41710428,216.5,216.4,7.22751622]
[1734518204635,7.22751622,216.48,216.46,2.3101]
[1734518204937,7.22751622,216.48,216.4,7.22751622]
[1734518205135,7.22751622,216.48,216.44,2.3103]
[1734518205729,7.22751622,216.46,216.44,2.3103]
[1734518205934,2.3101,216.47,216.43,2.3105]
[1734518208240,11.28029538,216.49,216.41,2.3106]
[1734518209040,11.28029538,216.49,216.37,1.4734]
[1734518209243,2.3103,216.46,216.42,2.3106]
[1734518209437,2.3103,216.46,216.37,1.4734]
[1734518209639,2.3103,216.46,216.38,4.71715703]
[1734518209843,11.28029538,216.49,216.43,2.3105]
[1734518209844,2.3101,216.47,216.43,2.3105]
[1734518213746,11.28029538,216.49,216.43,2.3105]
[1734518214148,11.28029538,216.49,216.44,2.3104]
[1734518214446,2.3102,216.47,216.44,2.3104]
[1734518214840,2.31,216.48,216.44,2.3104]
[1734518215843,11.28029538,216.49,216.37,1.4734]
[1734518216541,11.28029538,216.49,216.39,5.45746137]
[1734518216745,13.59019538,216.49,216.45,2.3102]
[1734518218944,13.59019538,216.49,216.43,2.3104]
[1734518218945,2.3101,216.48,216.43,2.3104]
[1734518220250,11.28029538,216.49,216.43,2.3104]
[1734518220550,2.3101,216.47,216.43,2.3104]
[1734518221142,2.3103,216.46,216.43,2.3104]
[1734518221548,2.3103,216.46,216.42,2.3106]
[1734518222352,2.3103,216.46,216.43,2.3105]
[1734518225851,2.3105,216.44,216.37,1.4734]
[1734518226754,2.3105,216.43,216.4,2.3107]
[1734518227556,7.22062845,216.45,216.37,1.4734]
[1734518228457,2.3105,216.43,216.4,2.3108]
[1734518230452,9.53112845,216.43,216.4,2.3108]
[1734518230758,5.45226691,216.51,216.37,2.3111]
[1734518230759,7.22062845,216.41,216.37,2.3111]
[1734518231256,7.22062845,216.41,216.38,2.311]
[1734518231657,1.5119,216.49,216.35,1.5006]
[1734518231852,7.22062845,216.45,216.41,2.3107]
[1734518232160,7.22062845,216.45,216.38,7.22062845]
[1734518232957,2.3103,216.46,216.43,2.3105]
[1734518233156,9.53092845,216.46,216.43,2.3105]
[1734518233356,9.53092845,216.46,216.4,2.3108]
[1734518233659,9.53092845,216.46,216.38,7.22062845]
[1734518233960,9.53092845,216.46,216.39,4.74124894]
[1734518234161,9.53092845,216.46,216.4,4.74124894]
[1734518234459,9.53092845,216.46,216.43,2.3104]
[1734518243071,7.22062845,216.46,216.4,2.3108]
[1734518243278,7.22062845,216.48,216.41,4.76047197]
[1734518243467,7.22062845,216.48,216.42,4.76047197]
[1734518243968,7.22062845,216.48,216.43,4.76047197]
[1734518244175,61.9418414,216.51,216.44,4.76047197]
[1734518244372,7.22062845,216.49,216.45,4.76047197]
[1734518244572,7.22062845,216.49,216.4,7.22062845]
[1734518244772,7.22062845,216.49,216.41,4.76127039]
[1734518244973,7.22062845,216.49,216.42,4.76127039]
[1734518245178,7.22062845,216.49,216.43,4.76127039]
[1734518245478,7.22062845,216.49,216.47,2.3101]
[1734518245978,61.9418414,216.51,216.5,2.3098]
[1734518245979,56.35319143,216.51,216.5,2.3098]
[1734518246376,7.22062845,216.57,216.48,7.22062845]
[1734518246571,7.22062845,216.57,216.49,4.76121334]
[1734518246871,7.22062845,216.57,216.5,4.76121334]
[1734518247275,7.22062845,216.57,216.51,4.76121334]
[1734518247577,7.22062845,216.59,216.52,7.22062845]
[1734518247774,5.67053093,216.62,216.54,7.22062845]
[1734518247976,7.22062845,216.61,216.54,7.22062845]
[1734518248177,7.22062845,216.61,216.58,2.3088]
[1734518254878,7.22062845,216.61,216.59,2.3088]
[1734518255274,7.22062845,216.61,216.54,7.22062845]
[1734518255275,7.22062845,216.64,216.56,7.22062845]
[1734518255475,7.22062845,216.64,216.61,2.3086]
[1734518257282,9.52892845,216.64,216.6,2.3087]
[1734518259278,7.22062845,216.62,216.58,2.3088]
[1734518259478,7.22062845,216.62,216.56,7.22062845]
[1734518259988,7.22062845,216.62,216.6,2.3087]
[1734518260482,9.52892845,216.64,216.6,2.3087]
[1734518261386,13.88,216.79,216.62,7.22062845]
[1734518261588,7.22062845,216.72,216.65,7.22062845]
[1734518261984,1.5552,216.77,216.65,7.22062845]
[1734518262189,7.22062845,216.73,216.67,7.22062845]
[1734518262992,7.22062845,216.73,216.69,2.3077]
[1734518263188,7.22062845,216.73,216.67,7.22062845]
[1734518263391,1.5552,216.77,216.67,7.22062845]
[1734518263595,7.22062845,216.75,216.67,7.22062845]
[1734518264090,9.52772845,216.75,216.7,2.3075]
[1734518264691,9.52772845,216.75,216.67,7.22062845]
[1734518265387,9.52772845,216.75,216.7,2.3075]
[1734518265892,9.52772845,216.75,216.71,2.3075]
[1734518266484,2.3068,216.78,216.74,2.3071]
[1734518266785,7.22062845,216.79,216.73,7.22062845]
[1734518266992,1.5934,216.85,216.73,7.22062845]
[1734518267185,95.28864064,216.8,216.73,7.22062845]
[1734518267393,7.22062845,216.82,216.75,7.22062845]
[1734518267889,7.22062845,216.82,216.78,2.3067]
[1734518268692,1.5934,216.91,216.75,7.22062845]
[1734518268891,1.5934,216.91,216.64,4.6165]
[1734518268892,7.22062845,216.84,216.77,7.22062845]
[1734518269093,12.8625929,216.86,216.79,7.22062845]
[1734518269693,7.22062845,216.86,216.79,7.22062845]
[1734518270394,9.52662845,216.86,216.81,2.3065]
[1734518273500,7.22062845,216.83,216.7,3.1409]
[1734518273694,7.22062845,216.83,216.75,7.22062845]
[1734518273889,7.22062845,216.81,216.7,3.1409]
[1734518274090,2.3066,216.8,216.73,7.22062845]
[1734518274395,5.48333553,216.87,216.77,7.22062845]
[1734518274396,7.22062845,216.84,216.77,7.22062845]
[1734518274998,5.48333553,216.87,216.79,7.22062845]
[1734518275196,7.22062845,216.86,216.79,7.22062845]
[1734518275394,9.52652845,216.86,216.81,2.3065]
[1734518278002,2.3059,216.86,216.81,2.3065]
[1734518279304,1.5934,216.91,216.83,2.3062]
[1734518279502,11.2391615,216.9,216.83,2.3062]
[1734518279902,2.3058,216.88,216.83,2.3062]
[1734518280505,2.3059,216.87,216.83,2.3062]
[1734518281402,11.2391615,216.87,216.7,1.5738]
[1734518281606,11.2391615,216.87,216.71,11.2391615]
[1734518283210,1.5934,216.91,216.8,11.2391615]
[1734518283704,2.3056,216.9,216.85,2.306]
[1734518284010,1.5934,216.91,216.85,2.306]
[1734518284304,11.2391615,216.94,216.83,2.3062]
[1734518285304,2.3058,216.88,216.83,2.3062]
[1734518285505,5.65342123,216.92,216.8,11.2391615]
[1734518285710,5.65342123,216.92,216.83,11.2391615]
[1734518286708,2.3055,216.91,216.86,2.3058]
[1734518286909,5.65342123,216.92,216.86,2.3058]
[1734518287909,2.3056,216.9,216.86,2.3058]
[1734518290804,2.3056,216.9,216.78,1.4671]
[1734518290805,2.3064,216.83,216.78,2.3067]
[1734518291114,11.2391615,216.88,216.78,2.3067]
[1734518291708,11.2391615,216.88,216.74,11.2391615]
[1734518292011,11.2391615,216.88,216.79,2.3066]
[1734518292604,2.3063,216.83,216.79,2.3066]
[1734518293312,11.2391615,216.88,216.79,2.3066]
[1734518293513,2.3064,216.82,216.78,2.3068]
[1734518294511,2.3064,216.82,216.79,2.3066]
[1734518295417,2.3064,216.82,216.78,2.3068]
[1734518295615,2.3065,216.81,216.78,2.3068]
[1734518296616,11.2391615,216.88,216.78,2.3068]
[1734518296814,2.3063,216.83,216.78,2.3068]
[1734518297216,2.3065,216.81,216.77,2.3069]
[1734518297707,11.2391615,216.85,216.77,2.3069]
[1734518298419,2.3066,216.8,216.77,2.3069]
[1734518301219,2.3065,216.81,216.77,2.3069]
[1734518301810,7.19672994,216.82,216.65,6.40541131]
[1734518302014,15.3244,216.89,216.71,7.19672994]
[1734518302015,2.307,216.76,216.71,7.19672994]
[1734518302215,7.19672994,216.78,216.71,7.19672994]
[1734518302520,9.50362994,216.78,216.74,2.3072]
[1734518303215,9.50362994,216.78,216.71,7.19672994]
[1734518303412,15.3244,216.89,216.75,2.3071]
[1734518303616,2.3067,216.79,216.75,2.3071]
[1734518304014,15.3244,216.89,216.73,7.19672994]
[1734518304219,7.19672994,216.82,216.77,2.3069]
[1734518305421,2.3065,216.81,216.78,4.73171956]
[1734518305819,2.3065,216.81,216.77,2.3069]
[1734518306222,2.3065,216.81,216.78,4.73171955]
[1734518306415,2.3065,216.81,216.77,2.3069]
[1734518306914,2.3065,216.81,216.78,4.73714616]
[1734518307220,2.3065,216.81,216.77,2.3069]
[1734518307616,9.50322994,216.81,216.78,4.73964111]
[1734518307820,7.19672994,216.81,216.79,4.73964111]
[1734518308022,2.3067,216.8,216.76,2.3069]
[1734518308417,2.3067,216.8,216.77,4.73977604]
[1734518308621,2.3067,216.8,216.78,4.73977604]
[1734518308919,2.3067,216.8,216.76,2.3069]
[1734518309323,2.3067,216.8,216.77,4.74340295]
[1734518309623,2.3067,216.8,216.78,4.74340295]
[1734518309818,2.3067,216.8,216.76,2.3069]
[1734518310012,9.50342994,216.8,216.77,4.74378602]
[1734518310219,9.50342994,216.8,216.78,4.74378602]
[1734518310419,9.50342994,216.8,216.76,2.3069]
[1734518310621,9.50342994,216.8,216.77,4.74585747]
[1734518310821,9.50342994,216.8,216.78,4.74585747]
[1734518311121,9.50342994,216.8,216.76,2.3069]
[1734518311517,9.50342994,216.8,216.77,4.74841558]